[Event "Delancey UK Schools 2019 U18"]
[Site "Daventry"]
[Date "2019.09.24"]
[Round "5.5"]
[White "Modi, Kishan Jagdish"]
[Black "Kalavannan, Koby"]
[Result "1/2-1/2"]
[ECO "B35"]
[WhiteElo "2004"]
[BlackElo "2324"]
[Annotator "NA"]
[PlyCount "39"]
[EventDate "2019.09.24"]
[EventCountry "GBR"]
[SourceTitle "playchess.com"]
[Source "ChessBase"]
[SourceQuality "1"]
[TimeControl "40/5400+30:1800+30"]

1. e4 {[%emt 1:10:11]} c5 {[%emt 1:10:10]} 2. Nf3 {[%emt 0:00:21]} Nc6 {[%emt 0:00:21]} 3. d4 {[%emt 0:00:20]} cxd4 {[%emt 0:00:21]} 4. Nxd4 {[%emt 0:00:21]} g6 {[%emt 0:00:21]} 5. Nc3 {[%emt 0:00:22]} Bg7 {[%emt 0:00:21]} 6. Be3 {[%emt 0:00:21]} Nf6 {[%emt 0:00:21]} 7. Bc4 {[%emt 0:00:21]} O-O {[%emt 0:00:21]} 8. Bb3 {[%emt 0:00:21]} Re8 {[%emt 0:00:21]} 9. f3 {[%emt 0:00:21]} e6 {[%emt 0:00:23]} 10. f4 {[%emt 0:00:21]} Ng4 {[%emt 0:03:57]} 11. Qxg4 {[%emt 0:01:15]} Nxd4 {[%emt 0:00:26]} 12. O-O-O {[%emt 0:02:09]} Nxb3+ {[%emt 0:00:42]} 13. axb3 {[%emt 0:00:23]} Qa5 {[%emt 0:00:54]} 14. Kb1 {[%emt 0:00:21]} d5 {[%emt 0:01:21]} 15. e5 {[%emt 0:00:26]} Qb4 {[%emt 0:04:48]} 16. Qe2 {[%emt 0:00:43]} Bd7 {[%emt 0:00:46]} 17. h4 {[%emt 0:00:47]} b5 {[%emt 0:02:04]} 18. h5 {[%emt 0:02:28]} Rec8 {[%emt 0:01:00]} 19. f5 {[%emt 0:01:05]} gxf5 {[%emt 0:03:06]} 20. h6 {[%emt 0:00:48]} 1/2-1/2

[Event "Delancey UK Schools 2019 U18"]
[Site "Daventry"]
[Date "2019.09.24"]
[Round "5.6"]
[White "Carroll, Thomas"]
[Black "Isaksen, Peter A"]
[Result "0-1"]
[ECO "D33"]
[WhiteElo "2036"]
[BlackElo "1858"]
[Annotator "NA"]
[PlyCount "74"]
[EventDate "2019.09.24"]
[EventCountry "GBR"]
[SourceTitle "playchess.com"]
[Source "ChessBase"]
[SourceQuality "1"]
[TimeControl "40/5400+30:1800+30"]

1. d4 {[%emt 1:10:12]} d5 {[%emt 1:10:11]} 2. c4 {[%emt 0:00:21]} e6 {[%emt 0:00:21]} 3. Nc3 {[%emt 0:00:21]} c5 {[%emt 0:00:21]} 4. cxd5 {[%emt 0:00:23]} exd5 {[%emt 0:00:22]} 5. Nf3 {[%emt 0:00:22]} Nc6 {[%emt 0:00:22]} 6. g3 {[%emt 0:00:21]} c4 {[%emt 0:00:22]} 7. Bg2 {[%emt 0:00:48]} Bb4 {[%emt 0:00:22]} 8. O-O {[%emt 0:00:40]} Nge7 {[%emt 0:00:21]} 9. Bf4 {[%emt 0:02:07]} Bf5 {[%emt 0:01:52]} 10. Rc1 {[%emt 0:00:46]} O-O {[%emt 0:00:32]} 11. Ne5 {[%emt 0:02:28]} Nxe5 {[%emt 0:03:03]} 12. Bxe5 {[%emt 0:00:56]} Qa5 {[%emt 0:01:35]} 13. a3 {[%emt 0:02:30]} Bxc3 {[%emt 0:00:55]} 14. Rxc3 {[%emt 0:00:23]} Rfd8 {[%emt 0:01:12]} 15. Bf4 {[%emt 0:01:43]} b5 {[%emt 0:03:19]} 16. Bd2 {[%emt 0:04:55]} Qb6 {[%emt 0:00:32]} 17. Be3 {[%emt 0:06:13]} a5 {[%emt 0:00:30]} 18. f3 {[%emt 0:00:31]} b4 {[%emt 0:00:40]} 19. axb4 {[%emt 0:00:51]} axb4 {[%emt 0:00:23]} 20. Rc1 {[%emt 0:00:23]} Ra2 {[%emt 0:00:22]} 21. Bf2 {[%emt 0:00:44]} Rxb2 {[%emt 0:00:35]} 22. e4 {[%emt 0:00:25]} Be6 {[%emt 0:00:32]} 23. f4 {[%emt 0:01:53]} dxe4 {[%emt 0:03:17]} 24. d5 {[%emt 0:00:21]} e3 {[%emt 0:00:53]} 25. Bxe3 {[%emt 0:01:39]} Qxe3+ {[%emt 0:00:29]} 26. Kh1 {[%emt 0:00:21]} Rxg2 {[%emt 0:01:39]} 27. dxe6 {[%emt 0:00:35]} Rxd1 {[%emt 0:00:51]} 28. Rcxd1 {[%emt 0:00:21]} fxe6 {[%emt 0:01:03]} 29. Kxg2 {[%emt 0:00:26]} Qe2+ {[%emt 0:00:33]} 30. Kg1 {[%emt 0:00:23]} Kf7 {[%emt 0:00:26]} 31. Rfe1 {[%emt 0:00:26]} Qb2 {[%emt 0:01:44]} 32. Rd6 {[%emt 0:00:38]} Nf5 {[%emt 0:01:15]} 33. Rdxe6 {[%emt 0:00:35]} Qd4+ {[%emt 0:00:24]} 34. Kf1 {[%emt 0:00:36]} c3 {[%emt 0:00:40]} 35. R6e4 {[%emt 0:00:36]} Qd3+ {[%emt 0:00:31]} 36. Kg2 {[%emt 0:00:23]} Qxe4+ {[%emt 0:01:36]} 37. Rxe4 {[%emt 0:00:22]} c2 {[%emt 0:00:21]} 0-1

[Event "Delancey UK Schools 2019 U18"]
[Site "Daventry"]
[Date "2019.09.24"]
[Round "5.7"]
[White "Jain, Gautam"]
[Black "Ye, Kevin"]
[Result "1-0"]
[ECO "C47"]
[WhiteElo "1900"]
[BlackElo "1758"]
[Annotator "NA"]
[PlyCount "121"]
[EventDate "2019.09.24"]
[EventCountry "GBR"]
[SourceTitle "playchess.com"]
[Source "ChessBase"]
[SourceQuality "1"]
[TimeControl "40/5400+30:1800+30"]

1. e4 {[%emt 1:10:12]} e5 {[%emt 1:10:13]} 2. Nf3 {[%emt 0:00:23]} Nc6 {[%emt 0:00:21]} 3. Nc3 {[%emt 0:00:21]} Nf6 {[%emt 0:00:21]} 4. h3 {[%emt 0:00:21]} a6 {[%emt 0:00:34]} 5. d3 {[%emt 0:01:03]} h6 {[%emt 0:00:30]} 6. g4 {[%emt 0:00:38]} Bb4 {[%emt 0:02:31]} 7. Bg2 {[%emt 0:02:06]} d6 {[%emt 0:02:19]} 8. O-O {[%emt 0:02:15]} Be6 {[%emt 0:01:46]} 9. Ne2 {[%emt 0:01:01]} Qe7 {[%emt 0:04:00]} 10. c3 {[%emt 0:00:34]} Ba5 {[%emt 0:00:21]} 11. Be3 {[%emt 0:01:22]} d5 {[%emt 0:01:10]} 12. Ng3 {[%emt 0:01:47]} O-O-O {[%emt 0:01:39]} 13. Qa4 {[%emt 0:01:59]} b5 {[%emt 0:02:10]} 14. Qc2 {[%emt 0:01:16]} dxe4 {[%emt 0:00:23]} 15. dxe4 {[%emt 0:00:47]} Rd7 {[%emt 0:01:48]} 16. a4 {[%emt 0:03:38]} Bc4 {[%emt 0:01:42]} 17. axb5 {[%emt 0:01:53]} axb5 {[%emt 0:02:54]} 18. b4 {[%emt 0:00:22]} Bxf1 {[%emt 0:01:44]} 19. Bxf1 {[%emt 0:00:25]} Bb6 {[%emt 0:01:12]} 20. Bxb6 {[%emt 0:00:59]} cxb6 {[%emt 0:00:21]} 21. Bxb5 {[%emt 0:00:39]} Ra7 {[%emt 0:00:32]} 22. Rd1 {[%emt 0:01:06]} Qc7 {[%emt 0:01:37]} 23. Bxc6 {[%emt 0:01:35]} Qxc6 {[%emt 0:00:22]} 24. Nxe5 {[%emt 0:00:23]} Qe6 {[%emt 0:00:36]} 25. Nf3 {[%emt 0:00:46]} Rd8 {[%emt 0:00:25]} 26. Nd4 {[%emt 0:00:29]} Qc4 {[%emt 0:00:27]} 27. Qc1 {[%emt 0:02:08]} Rc7 {[%emt 0:00:31]} 28. Qa3 {[%emt 0:00:59]} Rb7 {[%emt 0:00:46]} 29. Re1 {[%emt 0:01:48]} Rdd7 {[%emt 0:00:58]} 30. Qa8+ {[%emt 0:01:01]} Rb8 {[%emt 0:00:28]} 31. Qc6+ {[%emt 0:00:55]} Qxc6 {[%emt 0:00:21]} 32. Nxc6 {[%emt 0:00:21]} Ra8 {[%emt 0:00:27]} 33. c4 {[%emt 0:00:35]} Kc7 {[%emt 0:00:25]} 34. b5 {[%emt 0:00:27]} Ra2 {[%emt 0:00:30]} 35. e5 {[%emt 0:00:27]} Nh7 {[%emt 0:00:42]} 36. h4 {[%emt 0:00:41]} Rc2 {[%emt 0:00:28]} 37. Ra1 {[%emt 0:00:36]} Rdd2 {[%emt 0:00:41]} 38. Ne4 {[%emt 0:00:28]} Ra2 {[%emt 0:00:24]} 39. Rc1 {[%emt 0:00:30]} Re2 {[%emt 0:00:26]} 40. Nc3 {[%emt 0:00:27]} Rxf2 {[%emt 0:00:37]} 41. Nxa2 {[%emt 0:30:21]} Rxa2 {[%emt 0:30:21]} 42. Rf1 {[%emt 0:00:31]} f6 {[%emt 0:00:24]} 43. e6 {[%emt 0:00:27]} Re2 {[%emt 0:00:22]} 44. e7 {[%emt 0:00:23]} f5 {[%emt 0:00:37]} 45. Rxf5 {[%emt 0:00:47]} Nf6 {[%emt 0:00:22]} 46. g5 {[%emt 0:00:17]} hxg5 {[%emt 0:00:33]} 47. hxg5 {[%emt 0:00:28]} Ne8 {[%emt 0:00:20]} 48. Rf7 {[%emt 0:00:45]} Kd7 {[%emt 0:00:34]} 49. Kf1 {[%emt 0:00:28]} Re4 {[%emt 0:00:24]} 50. Kf2 {[%emt 0:00:33]} g6 {[%emt 0:00:38]} 51. Kf3 {[%emt 0:00:27]} Nd6 {[%emt 0:00:30]} 52. Rf8 {[%emt 0:00:32]} Re6 {[%emt 0:00:32]} 53. Rd8+ {[%emt 0:00:31]} Kc7 {[%emt 0:00:25]} 54. Rg8 {[%emt 0:00:35]} Kd7 {[%emt 0:00:25]} 55. Rb8 {[%emt 0:00:29]} Nxc4 {[%emt 0:00:38]} 56. Rd8+ {[%emt 0:00:30]} Kc7 {[%emt 0:00:37]} 57. e8=Q {[%emt 0:00:30]} Rxe8 {[%emt 0:00:26]} 58. Rxe8 {[%emt 0:00:21]} Nd6 {[%emt 0:00:21]} 59. Re7+ {[%emt 0:00:25]} Kc8 {[%emt 0:00:23]} 60. Nd4 {[%emt 0:00:31]} Kd8 {[%emt 0:00:21]} 61. Rg7 {[%emt 0:00:27]} 1-0

[Event "Delancey UK Schools 2019 U18"]
[Site "Daventry"]
[Date "2019.09.24"]
[Round "5.8"]
[White "Golding, James"]
[Black "Stewart, Lilya"]
[Result "1-0"]
[ECO "D24"]
[WhiteElo "2075"]
[BlackElo "1567"]
[Annotator "NA"]
[PlyCount "51"]
[EventDate "2019.09.24"]
[EventCountry "GBR"]
[SourceTitle "playchess.com"]
[Source "ChessBase"]
[SourceQuality "1"]
[TimeControl "40/5400+30:1800+30"]

1. d4 {[%emt 1:10:12]} d5 {[%emt 1:10:11]} 2. c4 {[%emt 0:00:21]} dxc4 {[%emt 0:00:21]} 3. Nf3 {[%emt 0:00:22]} Nf6 {[%emt 0:00:24]} 4. Nc3 {[%emt 0:00:22]} a6 {[%emt 0:00:36]} 5. a4 {[%emt 0:01:38]} Nc6 {[%emt 0:00:58]} 6. e4 {[%emt 0:00:58]} Bg4 {[%emt 0:01:36]} 7. Be3 {[%emt 0:00:55]} e6 {[%emt 0:01:32]} 8. Bxc4 {[%emt 0:00:52]} Bb4 {[%emt 0:00:48]} 9. Qd3 {[%emt 0:00:25]} Bxf3 {[%emt 0:03:13]} 10. gxf3 {[%emt 0:00:26]} Ba5 {[%emt 0:01:35]} 11. O-O {[%emt 0:02:41]} O-O {[%emt 0:00:55]} 12. Kh1 {[%emt 0:01:20]} Bb6 {[%emt 0:00:27]} 13. Rad1 {[%emt 0:01:28]} Qe7 {[%emt 0:00:53]} 14. Rg1 {[%emt 0:03:34]} g6 {[%emt 0:03:00]} 15. e5 {[%emt 0:03:58]} Nh5 {[%emt 0:00:57]} 16. Ne4 {[%emt 0:02:35]} Qb4 {[%emt 0:06:24]} 17. Nf6+ {[%emt 0:03:13]} Nxf6 {[%emt 0:00:31]} 18. exf6 {[%emt 0:00:22]} Rfd8 {[%emt 0:00:47]} 19. Bxe6 {[%emt 0:01:28]} fxe6 {[%emt 0:03:04]} 20. Rxg6+ {[%emt 0:00:25]} Kf7 {[%emt 0:01:18]} 21. Rg7+ {[%emt 0:00:35]} Kf8 {[%emt 0:00:45]} 22. Qxh7 {[%emt 0:00:42]} Ke8 {[%emt 0:00:32]} 23. Rg8+ {[%emt 0:00:48]} Qf8 {[%emt 0:00:22]} 24. Rxf8+ {[%emt 0:00:23]} Kxf8 {[%emt 0:00:21]} 25. Rg1 {[%emt 0:00:26]} Ke8 {[%emt 0:00:48]} 26. Rg8# {[%emt 0:00:03]} 1-0

[Event "Delancey UK Schools 2019 U18"]
[Site "Daventry"]
[Date "2019.09.24"]
[Round "5.9"]
[White "Brown, Tom"]
[Black "Nayak, Raghav"]
[Result "1-0"]
[ECO "D32"]
[WhiteElo "2005"]
[BlackElo "1914"]
[Annotator "NA"]
[PlyCount "38"]
[EventDate "2019.09.24"]
[EventCountry "GBR"]
[SourceTitle "playchess.com"]
[Source "ChessBase"]
[SourceQuality "1"]
[TimeControl "40/5400+30:1800+30"]

1. d4 {[%emt 1:10:12]} d5 {[%emt 1:10:17]} 2. c4 {[%emt 0:00:36]} e6 {[%emt 0:00:25]} 3. Nc3 {[%emt 0:00:22]} c5 {[%emt 0:00:22]} 4. cxd5 {[%emt 0:00:34]} cxd4 {[%emt 0:00:25]} 5. Qa4+ {[%emt 0:00:57]} Bd7 {[%emt 0:00:22]} 6. Qxd4 {[%emt 0:00:24]} exd5 {[%emt 0:00:23]} 7. Qxd5 {[%emt 0:01:06]} Nc6 {[%emt 0:00:21]} 8. Nf3 {[%emt 0:00:55]} Nf6 {[%emt 0:00:23]} 9. Qd1 {[%emt 0:01:24]} Bc5 {[%emt 0:00:51]} 10. e3 {[%emt 0:01:04]} Qe7 {[%emt 0:00:27]} 11. a3 {[%emt 0:01:48]} O-O-O {[%emt 0:00:41]} 12. Qc2 {[%emt 0:01:23]} Kb8 {[%emt 0:01:15]} 13. Be2 {[%emt 0:02:36]} Rhg8 {[%emt 0:01:34]} 14. O-O {[%emt 0:01:20]} g5 {[%emt 0:00:31]} 15. b4 {[%emt 0:00:40]} g4 {[%emt 0:00:56]} 16. Nd2 {[%emt 0:01:49]} Bd6 {[%emt 0:00:36]} 17. Nc4 {[%emt 0:01:46]} Ne5 {[%emt 0:03:44]} 18. Nxd6 {[%emt 0:02:23]} Qxd6 {[%emt 0:00:22]} 19. Rd1 {[%emt 0:01:28]} Nf3+ {[%emt 0:10:00] Bb2} 1-0

[Event "Delancey UK Schools 2019 U18"]
[Site "Daventry"]
[Date "2019.09.24"]
[Round "5.10"]
[White "Guha, Chirag"]
[Black "Somton, Anita"]
[Result "1-0"]
[ECO "E14"]
[WhiteElo "1769"]
[BlackElo "1831"]
[Annotator "NA"]
[PlyCount "73"]
[EventDate "2019.09.24"]
[EventCountry "GBR"]
[SourceTitle "playchess.com"]
[Source "ChessBase"]
[SourceQuality "1"]
[TimeControl "40/5400+30:1800+30"]

1. d4 {[%emt 1:10:11]} d5 {[%emt 1:10:12]} 2. c4 {[%emt 0:00:24]} e6 {[%emt 0:00:22]} 3. Nf3 {[%emt 0:00:22]} Nf6 {[%emt 0:00:22]} 4. e3 {[%emt 0:00:22]} Be7 {[%emt 0:00:33]} 5. b3 {[%emt 0:00:21]} O-O {[%emt 0:00:32]} 6. Bb2 {[%emt 0:00:22]} Nbd7 {[%emt 0:00:32]} 7. Bd3 {[%emt 0:01:10]} b6 {[%emt 0:01:06]} 8. cxd5 {[%emt 0:00:56]} exd5 {[%emt 0:00:26]} 9. O-O {[%emt 0:01:08]} Bb7 {[%emt 0:00:56]} 10. Nc3 {[%emt 0:00:25]} Re8 {[%emt 0:01:06]} 11. Rc1 {[%emt 0:00:44]} Nf8 {[%emt 0:01:06]} 12. Ne5 {[%emt 0:02:43]} a6 {[%emt 0:01:43]} 13. Ne2 {[%emt 0:01:49]} c5 {[%emt 0:01:22]} 14. Nf4 {[%emt 0:02:16]} Bd6 {[%emt 0:00:58]} 15. a4 {[%emt 0:01:38]} cxd4 {[%emt 0:00:53]} 16. exd4 {[%emt 0:00:37]} Qb8 {[%emt 0:01:22]} 17. Nh5 {[%emt 0:05:07]} Nxh5 18. Qxh5 {[%emt 0:00:23]} Bxe5 {[%emt 0:02:37]} 19. dxe5 {[%emt 0:00:24]} Re6 {[%emt 0:00:40]} 20. h3 {[%emt 0:01:37]} Qd8 {[%emt 0:00:47]} 21. f4 {[%emt 0:01:55]} Rh6 {[%emt 0:01:34]} 22. Qf3 {[%emt 0:01:34]} b5 {[%emt 0:01:48]} 23. Qe3 {[%emt 0:00:56]} bxa4 {[%emt 0:01:00]} 24. bxa4 {[%emt 0:00:23]} Ne6 {[%emt 0:01:44]} 25. f5 {[%emt 0:00:48]} d4 {[%emt 0:01:02]} 26. Qg3 {[%emt 0:01:00]} Ng5 {[%emt 0:00:46]} 27. f6 {[%emt 0:00:42]} Ne6 {[%emt 0:00:53]} 28. Bf5 {[%emt 0:02:14]} Qb6 {[%emt 0:01:55]} 29. Ba3 {[%emt 0:01:25]} g6 {[%emt 0:01:01]} 30. Bd6 {[%emt 0:00:22]} Bd5 {[%emt 0:01:31]} 31. Rb1 {[%emt 0:00:52]} Qa7 {[%emt 0:00:35]} 32. Bd3 {[%emt 0:00:33]} Qd7 {[%emt 0:01:05]} 33. Rb4 {[%emt 0:00:27]} a5 {[%emt 0:00:31]} 34. Rb6 {[%emt 0:00:33]} Nd8 {[%emt 0:01:19]} 35. Rfb1 {[%emt 0:00:30]} Bb7 {[%emt 0:00:42]} 36. Be7 {[%emt 0:00:28]} Bc8 {[%emt 0:00:57]} 37. Rd6 {[%emt 0:00:29]} 1-0

[Event "Delancey UK Schools 2019 U18"]
[Site "Daventry"]
[Date "2019.09.24"]
[Round "5.12"]
[White "Stoyanov, Viktor"]
[Black "Cocks, Elliot"]
[Result "1-0"]
[ECO "A30"]
[WhiteElo "2272"]
[BlackElo "1881"]
[Annotator "NA"]
[PlyCount "48"]
[EventDate "2019.09.24"]
[EventCountry "GBR"]
[SourceTitle "playchess.com"]
[Source "ChessBase"]
[SourceQuality "1"]
[TimeControl "40/5400+30:1800+30"]

1. Nf3 {[%emt 1:10:16]} Nf6 {[%emt 1:10:14]} 2. c4 {[%emt 0:00:23]} e6 {[%emt 0:00:36]} 3. e3 {[%emt 0:00:42]} b6 {[%emt 0:00:59]} 4. b3 {[%emt 0:00:26]} Bb7 {[%emt 0:00:28]} 5. Bb2 {[%emt 0:00:23]} Be7 {[%emt 0:00:31]} 6. Nc3 {[%emt 0:00:33]} O-O {[%emt 0:00:25]} 7. Be2 {[%emt 0:00:22]} c5 {[%emt 0:00:34]} 8. O-O {[%emt 0:00:24]} d5 {[%emt 0:01:22]} 9. cxd5 {[%emt 0:00:24]} Nxd5 {[%emt 0:00:24]} 10. Rc1 {[%emt 0:00:26]} Nc6 {[%emt 0:00:34]} 11. Nxd5 {[%emt 0:00:28]} Qxd5 {[%emt 0:00:24]} 12. Qc2 {[%emt 0:00:56]} Rfd8 {[%emt 0:00:39]} 13. Rfd1 {[%emt 0:00:34]} Nb4 {[%emt 0:00:33]} 14. Qb1 {[%emt 0:01:02]} Nd3 {[%emt 0:00:31]} 15. Rc4 {[%emt 0:02:54]} Nxb2 {[%emt 0:01:05]} 16. Qxb2 {[%emt 0:00:23]} Bf6 {[%emt 0:00:30]} 17. d4 {[%emt 0:00:29]} Rac8 {[%emt 0:01:17]} 18. Bf1 {[%emt 0:02:55]} Qh5 {[%emt 0:00:41]} 19. Qe2 {[%emt 0:00:51]} Ba6 {[%emt 0:00:57]} 20. dxc5 {[%emt 0:00:51]} Rxd1 21. Qxd1 {[%emt 0:00:21]} Bxc4 {[%emt 0:01:04]} 22. Bxc4 {[%emt 0:00:27]} Qxc5 {[%emt 0:00:28]} 23. Qd7 {[%emt 0:00:24]} Rd8 {[%emt 0:00:37]} 24. Qxa7 {[%emt 0:00:27]} h6 {[%emt 0:01:24]} 1-0

[Event "Delancey UK Schools 2019 U18"]
[Site "Daventry"]
[Date "2019.09.24"]
[Round "6.1"]
[White "Boswell, Jacob Connor"]
[Black "Grieve, Harry"]
[Result "1-0"]
[ECO "A84"]
[WhiteElo "2000"]
[BlackElo "2277"]
[Annotator "NA"]
[PlyCount "87"]
[EventDate "2019.09.24"]
[EventCountry "GBR"]
[SourceTitle "playchess.com"]
[Source "ChessBase"]
[SourceQuality "1"]
[TimeControl "40/5400+30:1800+30"]

1. d4 {[%emt 1:10:11]} d5 {[%emt 1:10:14]} 2. c4 {[%emt 0:00:22]} e6 {[%emt 0:00:21]} 3. Nf3 {[%emt 0:00:22]} c6 {[%emt 0:00:22]} 4. e3 {[%emt 0:00:22]} Bd6 {[%emt 0:00:22]} 5. Bd3 {[%emt 0:00:22]} f5 {[%emt 0:00:21]} 6. O-O {[%emt 0:00:28]} Nf6 {[%emt 0:00:22]} 7. b3 {[%emt 0:00:23]} Qe7 {[%emt 0:00:22]} 8. a4 {[%emt 0:00:21]} a5 {[%emt 0:00:21]} 9. Ba3 {[%emt 0:00:23]} Bxa3 {[%emt 0:00:38]} 10. Rxa3 {[%emt 0:01:02]} Na6 {[%emt 0:00:31]} 11. Ne5 {[%emt 0:00:42]} O-O {[%emt 0:00:57]} 12. Ra2 {[%emt 0:00:59]} Nb4 {[%emt 0:00:26]} 13. Rb2 {[%emt 0:00:21]} b6 {[%emt 0:01:30]} 14. cxd5 {[%emt 0:00:39]} Nfxd5 {[%emt 0:02:02]} 15. Qd2 {[%emt 0:01:06]} Bb7 {[%emt 0:01:41]} 16. Nc3 {[%emt 0:01:49]} Rac8 {[%emt 0:01:28]} 17. Nxd5 {[%emt 0:01:04]} Nxd5 {[%emt 0:00:52]} 18. Bc4 {[%emt 0:02:01]} Nb4 {[%emt 0:02:55]} 19. Qe2 {[%emt 0:01:25]} c5 {[%emt 0:01:44]} 20. Rd2 {[%emt 0:00:52]} Rfd8 {[%emt 0:01:53]} 21. Rfd1 {[%emt 0:00:48]} cxd4 {[%emt 0:01:53]} 22. Rxd4 {[%emt 0:00:30]} Rxd4 {[%emt 0:00:38]} 23. Rxd4 {[%emt 0:00:37]} Bd5 {[%emt 0:00:50]} 24. Bxd5 {[%emt 0:01:52]} Nxd5 {[%emt 0:01:09]} 25. g3 {[%emt 0:00:36]} Qd6 {[%emt 0:04:18]} 26. Nc4 {[%emt 0:02:34]} Qb4 {[%emt 0:00:52]} 27. e4 {[%emt 0:02:33]} Nc3 {[%emt 0:03:41]} 28. Qd3 {[%emt 0:00:35]} Nxe4 {[%emt 0:00:50]} 29. Rd8+ {[%emt 0:00:24]} Rxd8 {[%emt 0:00:21]} 30. Qxd8+ {[%emt 0:00:21]} Qf8 {[%emt 0:00:36]} 31. Qxb6 {[%emt 0:00:23]} Qf6 {[%emt 0:00:48]} 32. Qxa5 {[%emt 0:01:04]} Qd4 {[%emt 0:00:30]} 33. Qb6 {[%emt 0:01:00]} Qd1+ {[%emt 0:00:28]} 34. Kg2 {[%emt 0:00:21]} Qd5 {[%emt 0:00:25]} 35. Ne3 {[%emt 0:00:53]} Qd2 {[%emt 0:00:22]} 36. Qxe6+ {[%emt 0:00:26]} Kf8 {[%emt 0:00:34]} 37. Qxf5+ {[%emt 0:00:22]} Nf6 {[%emt 0:00:21]} 38. a5 {[%emt 0:00:30]} Qd6 {[%emt 0:00:36]} 39. Qc8+ {[%emt 0:00:32]} Ne8 {[%emt 0:00:33]} 40. a6 {[%emt 0:00:25]} Kf7 {[%emt 0:00:35]} 41. a7 {[%emt 0:30:34]} Nc7 {[%emt 0:30:29]} 42. Qb7 {[%emt 0:00:23]} Kf6 {[%emt 0:00:27]} 43. Qxc7 {[%emt 0:00:24]} Qxc7 {[%emt 0:00:24]} 44. Nd5+ {[%emt 0:00:21]} 1-0

[Event "Delancey UK Schools 2019 U18"]
[Site "Daventry"]
[Date "2019.09.24"]
[Round "6.2"]
[White "Munshi, Aditya"]
[Black "Klingher, Dominic"]
[Result "0-1"]
[ECO "C06"]
[WhiteElo "2183"]
[BlackElo "2071"]
[Annotator "NA"]
[PlyCount "62"]
[EventDate "2019.09.24"]
[EventCountry "GBR"]
[SourceTitle "playchess.com"]
[Source "ChessBase"]
[SourceQuality "1"]
[TimeControl "40/5400+30:1800+30"]

1. e4 {[%emt 1:10:29]} e6 {[%emt 1:10:12]} 2. d4 {[%emt 0:00:39]} d5 {[%emt 0:00:21]} 3. Nd2 {[%emt 0:00:23]} Nf6 {[%emt 0:00:23]} 4. e5 {[%emt 0:00:21]} Nfd7 {[%emt 0:00:20]} 5. Bd3 {[%emt 0:00:21]} c5 {[%emt 0:00:21]} 6. c3 {[%emt 0:00:20]} Nc6 {[%emt 0:00:21]} 7. Ne2 {[%emt 0:00:21]} cxd4 {[%emt 0:00:21]} 8. cxd4 {[%emt 0:00:21]} f6 {[%emt 0:00:24]} 9. exf6 {[%emt 0:00:22]} Nxf6 {[%emt 0:00:21]} 10. Nf3 {[%emt 0:00:21]} Bd6 {[%emt 0:00:30]} 11. O-O {[%emt 0:00:24]} Qc7 {[%emt 0:00:22]} 12. Nc3 {[%emt 0:00:21]} a6 {[%emt 0:00:21]} 13. Bd2 {[%emt 0:00:21]} O-O {[%emt 0:00:26]} 14. Rc1 {[%emt 0:00:22]} g6 {[%emt 0:01:06]} 15. Bh6 {[%emt 0:00:29]} Re8 {[%emt 0:00:30]} 16. h3 {[%emt 0:01:15]} Nh5 {[%emt 0:01:11]} 17. Re1 {[%emt 0:00:46]} Bd7 {[%emt 0:00:34]} 18. Ne5 {[%emt 0:03:25]} Bxe5 {[%emt 0:02:45]} 19. dxe5 {[%emt 0:00:32]} Ng7 {[%emt 0:02:03]} 20. h4 {[%emt 0:06:19]} Rf8 {[%emt 0:00:45]} 21. h5 {[%emt 0:02:16]} Be8 {[%emt 0:01:34]} 22. hxg6 {[%emt 0:01:33]} Bxg6 {[%emt 0:00:21]} 23. Bxg6 {[%emt 0:00:29]} hxg6 {[%emt 0:00:22]} 24. Qg4 {[%emt 0:04:41]} Qf7 {[%emt 0:00:25]} 25. Rc2 {[%emt 0:02:22]} Qf5 {[%emt 0:02:59]} 26. Qxf5 {[%emt 0:01:08]} Rxf5 {[%emt 0:00:21]} 27. f4 {[%emt 0:00:29]} Nb4 {[%emt 0:01:37]} 28. Rd2 {[%emt 0:00:57]} Rc8 {[%emt 0:00:32]} 29. a3 {[%emt 0:00:48]} Nc6 {[%emt 0:00:26]} 30. Na4 {[%emt 0:01:22]} Na5 {[%emt 0:01:27]} 31. b4 {[%emt 0:01:01]} Nc4 {[%emt 0:01:53]} 0-1

[Event "Delancey UK Schools 2019 U18"]
[Site "Daventry"]
[Date "2019.09.24"]
[Round "6.3"]
[White "Kalavannan, Koby"]
[Black "Golding, Alex"]
[Result "1-0"]
[ECO "E60"]
[WhiteElo "2324"]
[BlackElo "2306"]
[Annotator "NA"]
[PlyCount "77"]
[EventDate "2019.09.24"]
[EventCountry "GBR"]
[SourceTitle "playchess.com"]
[Source "ChessBase"]
[SourceQuality "1"]
[TimeControl "40/5400+30:1800+30"]

1. Nf3 {[%emt 1:10:11]} Nf6 {[%emt 1:10:12]} 2. e3 {[%emt 0:00:24]} d6 {[%emt 0:00:39]} 3. d4 {[%emt 0:00:51]} g6 {[%emt 0:00:23]} 4. b3 {[%emt 0:00:25]} Bg7 {[%emt 0:00:22]} 5. Bb2 {[%emt 0:00:21]} O-O {[%emt 0:00:22]} 6. Be2 {[%emt 0:01:21]} Nfd7 {[%emt 0:00:25]} 7. c4 {[%emt 0:01:31]} Nc6 {[%emt 0:00:25]} 8. O-O {[%emt 0:01:08]} e5 {[%emt 0:00:23]} 9. dxe5 {[%emt 0:00:33]} Ndxe5 {[%emt 0:00:22]} 10. Nxe5 {[%emt 0:00:22]} Bxe5 {[%emt 0:00:33]} 11. Nc3 {[%emt 0:00:31]} f5 {[%emt 0:00:40]} 12. Bf3 {[%emt 0:00:54]} Ne7 {[%emt 0:00:24]} 13. Qd2 {[%emt 0:01:10]} Rb8 {[%emt 0:00:55]} 14. Rac1 {[%emt 0:01:17]} Be6 {[%emt 0:00:46]} 15. Rfd1 {[%emt 0:00:44]} g5 {[%emt 0:02:33]} 16. g3 {[%emt 0:00:57]} g4 {[%emt 0:00:43]} 17. Bg2 {[%emt 0:00:34]} Ng6 {[%emt 0:00:24]} 18. Nb5 {[%emt 0:01:35]} Qe7 {[%emt 0:01:43]} 19. Ba3 {[%emt 0:02:45]} Rfd8 {[%emt 0:00:58]} 20. Nd4 {[%emt 0:02:16]} c5 {[%emt 0:00:34]} 21. Qc2 {[%emt 0:00:56]} Qf7 {[%emt 0:01:08]} 22. Nxe6 {[%emt 0:00:46]} Qxe6 {[%emt 0:00:21]} 23. Rd3 {[%emt 0:00:23]} Rd7 {[%emt 0:00:30]} 24. Rcd1 {[%emt 0:01:03]} Kg7 {[%emt 0:00:59]} 25. b4 {[%emt 0:00:30]} a6 {[%emt 0:00:30]} 26. b5 {[%emt 0:00:30]} axb5 {[%emt 0:00:30]} 27. cxb5 {[%emt 0:00:56]} d5 {[%emt 0:02:43] bxc6 bxc6} 28. Rc1 {[%emt 0:00:00] Rb6 Bc5 Rb2 Qa4 Rdb7} Qa6 {[%emt 0:01:23] Qd7} 29. Rdd1 {[%emt 0:03:49]} h5 {[%emt 0:00:51]} 30. Qa4 {[%emt 0:02:07]} Bf6 {[%emt 0:02:21] Bd4 Bxd4 exd4 R7b6} 31. Rxc5 {[%emt 0:01:20]} Qe6 {[%emt 0:00:36]} 32. Bf1 {[%emt 0:00:35]} f4 {[%emt 0:00:27]} 33. Rc2 {[%emt 0:01:21]} h4 {[%emt 0:00:39]} 34. Rb2 {[%emt 0:00:00] Rxb2 Qa3 Rb7} Qa6 {[%emt 0:04:37] Rf7 Qa3 fxg3 hxg3 Rf3} 35. Rd3 {[%emt 0:01:41] Qf6 Rxf3 gxf3 Qe3} hxg3 {[%emt 0:01:12]} 36. fxg3 {[%emt 0:00:22] Qf5 Bd3 f2+ Kg2 f1=Q+ Bxf1 Qc2+ Qf2 Qe4+ Kg1} Ne7 {[%emt 0:01:33]} 37. Bg2 {[%emt 0:01:25] Qb1+ Kh2 Qd3 Bh3 Qe4 a4 c5 Bg2 Qxd4 Qxd4+ cxd4 a5 d3 a6 d2 Bf3} Nc6 {[%emt 0:01:30] Kg2 Kf6} 38. Kf2 {[%emt 0:00:49] Ke5 Ke3 Kd6 Kxd2 Kc5 Kc3} Na7 {[%emt 0:01:44] g4 Nb5+ Kd3 Nc7 g5 Kb6 g6 Ne6 Ke3 Kxa6} 39. Bxd5 {[%emt 0:00:35] Ng7 Kf4 Kb6 Ke5 Kc7 Kf6 Ne8+ Ke7 Ng7 Be6} 1-0